Cogmind - Beta 11 X8 @@@ ROGUE MODE // 2021.11.28 @ 20:23:46 Player: biogoob Result: Destroyed by H-81 Overseer with Heavy Linear Accelerator Performance ------------- Evolutions (9) 4500 Regions Visited (19) 3800 Robots Destroyed (102) 510 Value Destroyed (3692) 3692 Prototype IDs (33) 660 Alien Tech Used (0) 0 Bonus (-7) -7 TOTAL SCORE: 13155 Bonus ------- High Alert Combat Kills 60 Follower Combat Kills 95 Aligned with FarCom 300 Friendly Fire -462 Cogmind --------- Core Integrity 0/1600 Matter 247/300 Energy 100/100 System Corruption 10% Temperature Cool (0) Movement Rolling (90) Location -1/Command Parts ------- > --- POWER (2) -------- (None) > --- PROPULSION (8) --- Centrium Wheel Centrium Wheel Centrium Wheel > --- UTILITY (12) ----- Enhanced Optical Array > --- WEAPON (3) ------- (None) > --- INVENTORY (5) ---- Field Propulsion Drive Improved Coolant Injector Peak State ------------ > --- POWER ------------ Micro Fission Core Light Quantum Reactor > --- PROPULSION ------- Field Propulsion Drive Field Propulsion Array Q-thruster Electron Diverter Electron Diverter Impulse Thruster Array > --- UTILITY ---------- Advanced Heat Sink Medium Storage Unit Enhanced Optical Array Improved Signal Interpreter Advanced Terrain Scanner Improved Melee Analysis Suite Advanced Transmission Jammer Layered Light Armor Plating Advanced Force Field Advanced Hacking Suite Advanced Hacking Suite Advanced System Shield > --- WEAPON ----------- Force Lance Force Lance Force Lance > --- INVENTORY -------- Light Particle Reactor Light Quantum Reactor Field Propulsion Drive Field Propulsion Drive Cooled Field Propulsion Drive Improved Coolant Injector Power Sword Spear Spear [Rating: 163] Favorites ----------- Power Ion Engine Engine Ion Engine Power Core Micro Fission Core Reactor Light Quantum Reactor Propulsion Aluminum Leg Leg Aluminum Leg Wheel Armored Huge Wheel Hover Unit Gravmag System Flight Unit Field Propulsion Drive Utility Large Storage Unit Device Advanced Heat Sink Storage Large Storage Unit Processor Improved Signal Interpreter Hackware Advanced Hacking Suite Protection Layered Light Armor Plating Weapon Spear Energy Gun Spread Laser Ballistic Gun Assault Rifle Launcher Mini Grenade Launcher Slashing Weapon Power Sword Piercing Weapon Spear Build | -11 -10 -10 -9 -9 -9 -8 -8 -7 -7 -7 -6 -5 -5 -5 -4 -3 -2 -1 -1 ------- Run | Scr Mat Min Mat Min Exi Min Mat Fac Low Low Fac Fac Was Fac Fac Res Res Acc Com Slots Evolved 18 | . . . 2 . . . 2 2 . . 2 2 . . 2 2 2 2 . Power 1 | . . . . . . . . . . . . . . . 1 . . . . Propulsion 6 | . . . 1 . . . 1 1 . . 1 . . . . 1 . 1 . Utility 10 | . . . 1 . . . 1 1 . . 1 2 . . . 1 2 1 . Weapon 1 | . . . . . . . . . . . . . . . 1 . . . . Parts Attached 194 | . 6 2 21 5 . 1 20 17 . . 14 6 3 42 14 12 6 22 3 Power 20 | . 2 . 1 . . 1 2 . . . 1 . 2 5 1 2 1 2 . Engine 6 | . 2 . 1 . . 1 2 . . . . . . . . . . . . Core 4 | . . . . . . . . . . . 1 . . 2 1 . . . . Reactor 10 | . . . . . . . . . . . . . 2 3 . 2 1 2 . Propulsion 68 | . . 2 4 1 . . 8 8 . . 5 2 . 20 1 6 2 6 3 Treads . | . . . . . . . . . . . . . . . . . . . . Leg 10 | . . 2 3 1 . . 4 . . . . . . . . . . . . Wheel 6 | . . . . . . . 2 1 . . . . . . . . . . 3 Hover 22 | . . . . . . . . 7 . . 5 2 . 8 . . . . . Flight 30 | . . . 1 . . . 2 . . . . . . 12 1 6 2 6 . Utility 67 | . 3 . 6 1 . . 8 4 . . 7 4 1 13 5 4 3 8 . Device 22 | . 1 . 3 . . . 2 . . . 3 2 . 4 2 1 1 3 . Storage 5 | . 1 . . . . . . 1 . . 1 . . 1 . 1 . . . Processor 8 | . . . 1 . . . 2 1 . . 1 . . 1 1 . . 1 . Hackware 11 | . . . . . . . . 1 . . 1 1 . 4 1 1 . 2 . Protection 21 | . 1 . 2 1 . . 4 1 . . 1 1 1 3 1 1 2 2 . Artifact . | . . . . . . . . . . . . . . . . . . . . Weapon 39 | . 1 . 10 3 . . 2 5 . . 1 . . 4 7 . . 6 . Energy Gun 10 | . 1 . 7 2 . . . . . . . . . . . . . . . Energy Cannon . | . . . . . . . . . . . . . . . . . . . . Ballistic Gun 4 | . . . . . . . 2 . . . . . . 2 . . . . . Ballistic Cannon . | . . . . . . . . . . . . . . . . . . . . Launcher 7 | . . . 3 1 . . . 2 . . . . . 1 . . . . . Special Weapon . | . . . . . . . . . . . . . . . . . . . . Impact Weapon . | . . . . . . . . . . . . . . . . . . . . Slashing Weapon 5 | . . . . . . . . . . . . . . . 3 . . 2 . Piercing Weapon 13 | . . . . . . . . 3 . . 1 . . 1 4 . . 4 . Special Melee Weapon . | . . . . . . . . . . . . . . . . . . . . Unidentified Prototypes 4 | . . . 3 . . . . . . . . . . . . . . 1 . Parts Lost 48 | . . . 6 1 . . 8 . 1 . . . . 10 . 1 . 21 . Power 6 | . . . 1 . . . 1 . . . . . . 1 . . . 3 . Propulsion 20 | . . . 1 1 . . 5 . 1 . . . . 5 . 1 . 6 . Utility 15 | . . . 2 . . . . . . . . . . 4 . . . 9 . Weapon 7 | . . . 2 . . . 2 . . . . . . . . . . 3 . Highest Loss Streak 21 | . . . 3 1 . . 5 . 1 . . . . 9 . 1 . 21 . Average Slot Usage (%) 90 | . 91 100 95 99 100 100 79 70 93 92 94 94 94 88 90 90 94 85 12 Engine 7 | . 14 14 11 11 11 11 8 7 7 7 2 . . . . . . . . Core 1 | . . . . . . . . . . . 3 5 1 1 6 4 4 3 . Leg 14 | . 28 28 30 32 33 33 13 . . . . . . . . . . . . Wheel 1 | . . . . . . . 9 10 . . . . . . . . . . 8 Hover 5 | . . . . . . . . 9 31 30 35 29 29 20 . . . . . Flight 5 | . . . . . . . . . . . . . . 8 25 23 26 22 . Device 6 | . . . 3 11 11 11 9 . . . 3 11 9 7 5 9 13 12 . Storage 8 | . 14 14 11 11 11 11 9 7 7 7 6 5 5 5 5 4 4 3 . Processor 7 | . . . 10 2 . . 3 20 15 15 13 11 11 13 15 14 13 12 4 Hackware 3 | . . . . . . . . 1 7 7 6 10 11 11 13 12 8 11 . Protection 7 | . 5 14 6 8 11 11 13 1 7 7 8 5 6 4 . . 7 4 . Energy Gun 8 | . 14 14 14 21 22 22 5 . . . . . . . . . . . . Ballistic Gun 3 | . 14 14 1 . . . 6 5 . . . . . . . . . . . Slashing Weapon 1 | . . . . . . . . . . . . . . . 2 9 8 1 . Piercing Weapon 3 | . . . . . . . . 3 7 7 9 11 11 7 12 4 4 9 . Naked Turns . | . . . . . . . . . . . . . . . . . . . . Heaviest Build 63 | 12 32 32 35 37 37 37 49 41 27 27 47 53 52 52 39 43 53 63 . Greatest Support 62 | 20 20 25 40 40 35 35 56 56 42 34 55 59 59 61 38 53 53 62 48 Greatest Overweight (x) 10 | . 1 1 1 1 1 1 4 1 . . . . . 10 1 . . 1 . Average Overweight (x) . | . . 1 . . 1 . . . . . . . . . . . . . . Largest Inventory Capacity 15 | . 15 15 15 15 15 15 15 15 10 10 15 15 15 15 10 10 10 10 5 Average Capacity 13 | . 8 15 15 15 15 15 15 13 10 10 14 15 15 13 10 10 10 9 5 Most Carried 15 | . 9 14 15 15 15 15 15 15 10 10 15 15 15 15 10 10 10 10 3 Average Carried 12 | . 7 12 14 14 14 15 14 13 10 10 12 14 14 13 7 9 8 8 2 Final Capacity 15 | 8 15 15 15 15 15 15 15 10 10 10 15 15 15 10 10 10 10 5 5 Final Carried 15 | 6 8 14 15 15 15 15 15 10 10 10 15 15 15 9 10 9 8 4 2 Class Distribution -------------------- 42% | Mutant 25% | Scavenger-Mutant 9% | Hacker-Ninja 9% | Hacker-Sprinter 8% | Hacker-Mutant Dominant Class ---------------- Mutant | -10/Materials Mutant | -10/Mines Mutant | -9/Materials Scavenger-Mutant | -9/Mines Scavenger-Mutant | -9/Exiles Scavenger-Mutant | -8/Mines Mutant | -8/Materials Mutant | -7/Factory Mutant | -7/Lower Caves Mutant | -7/Lower Caves Scout | -6/Factory Hacker-Mutant | -5/Factory Hacker-Mutant | -5/Waste Hacker-Mutant | -5/Factory Hacker-Sprinter | -4/Factory Hacker-Sprinter | -3/Research Hacker-Ninja | -2/Research Hacker-Ninja | -1/Access Mutant | -1/Command Resources | -11 -10 -10 -9 -9 -9 -8 -8 -7 -7 -7 -6 -5 -5 -5 -4 -3 -2 -1 -1 ----------- Run | Scr Mat Min Mat Min Exi Min Mat Fac Low Low Fac Fac Was Fac Fac Res Res Acc Com Matter Collected 2357 | 161 75 138 195 200 . 10 193 110 6 . 182 92 85 215 83 362 61 189 . Remotely . | . . . . . . . . . . . . . . . . . . . . Salvage Created 4813 | . 76 230 598 208 . 7 1292 205 . 32 40 . 1052 574 83 87 128 201 . Parts 225 | . 6 7 33 20 . 3 57 20 . 1 2 . 14 34 3 4 9 12 . Haulers Intercepted 3 | . . . 2 . . . . . . . . . . 1 . . . . . Recyclers Shooed 2 | . . . . 1 . . . . . . . . . 1 . . . . . Parts Field Recycled . | . . . . . . . . . . . . . . . . . . . . Retrieved Matter . | . . . . . . . . . . . . . . . . . . . . Parts Self-Destructed . | . . . . . . . . . . . . . . . . . . . . Prevented . | . . . . . . . . . . . . . . . . . . . . Kills | -11 -10 -10 -9 -9 -9 -8 -8 -7 -7 -7 -6 -5 -5 -5 -4 -3 -2 -1 -1 ------- Run | Scr Mat Min Mat Min Exi Min Mat Fac Low Low Fac Fac Was Fac Fac Res Res Acc Com Combat Hostiles Destroyed 85 | . 4 4 15 10 . . 24 6 . 3 1 . . 11 1 1 2 3 . Melee 15 | . . . . . . . . . . . 1 . . 7 1 1 2 3 . Guns 45 | . 4 4 5 5 . . 24 3 . . . . . . . . . . . AOE 25 | . . . 10 5 . . . 3 . 3 . . . 4 . . . . . Classes Destroyed 14 | . 3 . 3 2 . . 3 1 . . 1 . . 1 . . . . . Worker 3 | . . . . . . . . 2 . . . . . 1 . . . . . Builder 3 | . 1 . 1 . . . 1 . . . . . . . . . . . . Tunneler 2 | . . . . 1 . 1 . . . . . . . . . . . . . Hauler 3 | . . . 2 . . . . . . . . . . 1 . . . . . Recycler 2 | . . . . . . . 1 . . . . . . 1 . . . . . Watcher 3 | . . . . . . . 2 1 . . . . . . . . . . . Swarmer 23 | . 3 . . 6 . . 3 5 . 3 . . . 3 . . . . . Cutter 5 | . . . . . . . . . . . . . . 5 . . . . . Grunt 31 | . 1 4 10 1 . . 15 . . . . . . . . . . . . Brawler 2 | . . . 2 . . . . . . . . . . . . . . . . Duelist 2 | . . . . 1 . . 1 . . . . . . . . . . . . Sentry 11 | . . . 3 2 . . 3 1 . . . . . . 1 1 . . . Specialist 2 | . . . . . . . 2 . . . . . . . . . . . . Programmer 9 | . . . . . . . . . . . 1 . . 3 . . 2 3 . Thug 1 | . . 1 . . . . . . . . . . . . . . . . . Best Kill Streak 9 | . 4 2 6 6 . 1 9 5 . 3 1 . . 9 1 1 2 2 . Combat Bots Only 7 | . 3 2 4 6 . . 7 3 . 3 1 . . 6 1 1 2 2 . Max Kills in Single Turn 4 | . 1 1 3 4 . 1 1 3 . 2 1 . . 4 1 1 1 1 . Gunslinging . | . . . . . . . . . . . . . . . . . . . . Exploded 4 | . . . 2 4 . . . 2 . 2 . . . 2 . . . . . Melee 1 | . . . . . . . . . . . 1 . . 1 1 1 1 1 . Uniques/NPCs Destroyed . | . . . . . . . . . . . . . . . . . . . . Combat | -11 -10 -10 -9 -9 -9 -8 -8 -7 -7 -7 -6 -5 -5 -5 -4 -3 -2 -1 -1 -------- Run | Scr Mat Min Mat Min Exi Min Mat Fac Low Low Fac Fac Was Fac Fac Res Res Acc Com Damage Taken 8631 | . 217 220 491 389 . . 951 131 40 72 108 49 . 1333 173 341 539 3487 90 Core 2350 | . 47 77 70 48 . . 157 11 . 12 16 . . 71 18 59 143 1531 90 Absorbed by Shields 29 | . . . . . . . . . . . . . . 20 . . . 9 . Core Remaining (%) 86 | 100 . 50 . . . 70 71 . . 96 98 . . 92 98 95 90 . . Volleys Fired 139 | . 14 19 36 20 . 3 38 3 . 5 . . . 1 . . . . . Largest 2 | . 2 2 2 2 . 2 2 1 . 1 . . . 1 . . . . . Hottest 121 | . 70 70 121 121 . 121 121 30 . 30 . . . 30 . . . . . Shots Fired 311 | . 28 38 52 37 . 6 127 12 . 5 . . . 6 . . . . . Gun 285 | . 28 38 38 34 . 6 127 9 . . . . . 5 . . . . . Cannon . | . . . . . . . . . . . . . . . . . . . . Launcher 26 | . . . 14 3 . . . 3 . 5 . . . 1 . . . . . Special . | . . . . . . . . . . . . . . . . . . . . Kinetic 124 | . 14 19 . . . . 77 9 . . . . . 5 . . . . . Thermal 157 | . 14 19 34 34 . 6 50 . . . . . . . . . . . . Explosive 26 | . . . 14 3 . . . 3 . 5 . . . 1 . . . . . Electromagnetic 4 | . . . 4 . . . . . . . . . . . . . . . . Robot Hit Streak 23 | . 6 9 13 19 . 4 20 23 . . . . . 2 . . . . . Robot Miss Streak 9 | . 2 4 9 3 . 2 4 1 . 5 . . . 6 . . . . . Penetration Max 1 | . . . . . . . 1 1 . . . . . . . . . . . Secondary Targets 2 | . . 1 . . . . 1 . . . . . . . . . . . . Max Gunslinging Chain 1 | . . 1 . . . . 1 . . . . . . . . . . . . Autonomous 77 | . . . . . . . 62 9 . . . . . 6 . . . . . Shots Hit Robots 301 | . 19 27 39 29 . 3 110 12 . . 3 . 8 17 2 8 12 12 . Core Hits 206 | . 6 14 32 27 . 4 60 14 . 5 2 . 6 20 2 3 4 7 . Critical Kills 1 | . . . . . . . 1 . . . . . . . . . . . . Critical Parts Destroyed 1 | . . . . . . . . . . . . . . 1 . . . . . Critical Strikes 9 | . 1 1 1 . . . 3 . . . . . 1 1 . . 1 . . Burn 5 | . 1 1 1 . . . 2 . . . . . . . . . . . . Destroy 2 | . . . . . . . 1 . . . . . . 1 . . . . . Puncture 2 | . . . . . . . . . . . . . 1 . . . 1 . . Melee Attacks 186 | . . . . . . . . 1 . . 4 2 10 40 16 30 38 45 . Impact . | . . . . . . . . . . . . . . . . . . . . Slashing 46 | . . . . . . . . . . . . . . . 6 23 15 2 . Piercing 140 | . . . . . . . . 1 . . 4 2 10 40 10 7 23 43 . Sneak Attacks 3 | . . . . . . . . 1 . . . . . 2 . . . . . Combat Hostiles . | . . . . . . . . . . . . . . . . . . . . Follow-up Attacks 17 | . . . . . . . . . . . 1 . . 1 1 4 5 5 . Damage Inflicted 9466 | . 250 376 1378 817 . 39 2623 791 . 266 93 . 448 1077 79 283 436 510 . Guns 4483 | . 246 376 392 425 . 39 2616 298 . . . . . 91 . . . . . Cannons . | . . . . . . . . . . . . . . . . . . . . Explosions 2526 | . . . 986 392 . . . 412 . 266 . . . 470 . . . . . Melee 2422 | . . . . . . . . 81 . . 93 . 448 516 79 283 436 486 . Ramming 35 | . 4 . . . . . 7 . . . . . . . . . . 24 . Kinetic 2620 | . 86 183 . . . . 1962 298 . . . . . 91 . . . . . Thermal 2201 | . 160 193 361 425 . 39 654 . . . . . . 369 . . . . . Explosive 2040 | . . . 986 392 . . . 295 . 266 . . . 101 . . . . . Electromagnetic 148 | . . . 31 . . . . 117 . . . . . . . . . . . Impact . | . . . . . . . . . . . . . . . . . . . . Slashing 457 | . . . . . . . . . . . . . . . 55 204 198 . . Piercing 1965 | . . . . . . . . 81 . . 93 . 448 516 24 79 238 486 . Highest Corruption 10 | . . . 1 1 1 1 . 1 1 1 . . . 1 . . 10 10 10 Average Corruption 2 | . . . 1 1 1 1 . 1 1 1 . . . 1 . . 5 5 10 Corruption Purged . | . . . . . . . . . . . . . . . . . . . . Effects 44 | . . . 3 5 2 3 . . . . . . . 5 . . 9 10 7 Message Errors 14 | . . . 2 3 1 1 . . . . . . . 2 . . 2 3 . Matter Fused 8 | . . . . . . . . . . . . . . . . . 2 3 3 Heat Flow Errors 3 | . . . . . . . . . . . . . . . . . 3 . . Energy Discharges 12 | . . . . 2 1 1 . . . . . . . 2 . . 1 3 2 Data Loss (minor) 6 | . . . 1 . . 1 . . . . . . . 1 . . 1 1 1 Misdirections 1 | . . . . . . . . . . . . . . . . . . . 1 Overload Shots . | . . . . . . . . . . . . . . . . . . . . Overflow Damage 91 | . . . 21 . . . . . . 28 . . . 19 . . 15 8 . Projectiles . | . . . . . . . . . . . . . . . . . . . . Explosions 68 | . . . 21 . . . . . . 28 . . . 19 . . . . . Melee 23 | . . . . . . . . . . . . . . . . . 15 8 . Knockbacks . | . . . . . . . . . . . . . . . . . . . . Impact . | . . . . . . . . . . . . . . . . . . . . Kinetic . | . . . . . . . . . . . . . . . . . . . . Secondary . | . . . . . . . . . . . . . . . . . . . . Self-Inflicted Damage 259 | . . . 47 29 . . . 19 . 44 . . . 109 . . . 11 . Shots 8 | . . . 1 2 . . . 1 . 2 . . . 2 . . . . . Rammed 8 | . . . . . . . . . . . . . . . . . . 8 . Targets Rammed 12 | . 1 . . . . . 3 . . . . . . . . . . 8 . Kicked 4 | . 1 . . . . . 3 . . . . . . . . . . . . Crushed . | . . . . . . . . . . . . . . . . . . . . Highest Temperature 381 | . 90 138 372 168 . 36 93 . 381 . 2 11 3 124 38 . 278 214 . Average Temperature 64 | . 39 62 132 62 . 20 37 . 183 . 1 2 2 25 12 . 135 93 . Received Heat Transfer 1236 | . 42 126 228 90 . . 477 18 . . . 9 . 69 39 57 36 45 . Effects 2 | . . . . . . . . . 1 . . . . . . . 1 . . Shutdowns 1 | . . . . . . . . . 1 . . . . . . . . . . Energy Bleed 1 | . . . . . . . . . . . . . . . . . 1 . . Siege Activations . | . . . . . . . . . . . . . . . . . . . . Robots Corrupted . | . . . . . . . . . . . . . . . . . . . . Combat Hostiles . | . . . . . . . . . . . . . . . . . . . . Parts Fried . | . . . . . . . . . . . . . . . . . . . . Impact Corruptions . | . . . . . . . . . . . . . . . . . . . . Robots Melted . | . . . . . . . . . . . . . . . . . . . . Combat Hostiles . | . . . . . . . . . . . . . . . . . . . . Parts Melted 13 | . 1 2 1 3 . . 3 . . . . . . 2 . . . 1 . Heat Transferred 4691 | . 518 629 887 759 . 55 1543 . . . . . . 300 . . . . . Parts Sabotaged . | . . . . . . . . . . . . . . . . . . . . Parts Stolen . | . . . . . . . . . . . . . . . . . . . . Parts Stripped . | . . . . . . . . . . . . . . . . . . . . Power Chain Reactions . | . . . . . . . . . . . . . . . . . . . . Missiles Intercepted . | . . . . . . . . . . . . . . . . . . . . Alert | -11 -10 -10 -9 -9 -9 -8 -8 -7 -7 -7 -6 -5 -5 -5 -4 -3 -2 -1 -1 ------- Run | Scr Mat Min Mat Min Exi Min Mat Fac Low Low Fac Fac Was Fac Fac Res Res Acc Com Peak Influence 502 | . 134 50 458 404 . 82 502 311 . . 218 115 40 474 286 340 283 405 215 Initial 228 | . . 17 19 159 . . 13 228 . . 123 53 40 28 158 118 99 169 215 Average 154 | . 33 19 234 238 . 33 128 249 . . 144 79 40 183 191 216 146 276 215 Maximum Alert Level 2 | . . . 2 2 . . 2 1 . . 1 . . 2 1 1 1 2 1 Low Security (%) 62 | . 100 100 28 37 . 100 77 6 . . 93 100 100 69 69 40 76 15 . Level 1 33 | . . . 65 52 . . 14 93 . . 6 . . 24 30 59 23 79 100 Level 2 3 | . . . 5 10 . . 8 . . . . . . 6 . . . 4 . Level 3 . | . . . . . . . . . . . . . . . . . . . . Level 4 . | . . . . . . . . . . . . . . . . . . . . Level 5 . | . . . . . . . . . . . . . . . . . . . . High Security . | . . . . . . . . . . . . . . . . . . . . Max Security . | . . . . . . . . . . . . . . . . . . . . Squads Dispatched 28 | . . . 3 . . . 5 4 . . 2 . . 5 1 4 2 2 . Investigation 4 | . . . . . . . . 3 . . . . . . . 1 . . . Extermination 8 | . . . . . . . . 1 . . 1 . . 2 1 1 1 1 . Reinforcement 16 | . . . 3 . . . 5 . . . 1 . . 3 . 2 1 1 . Assault . | . . . . . . . . . . . . . . . . . . . . Garrison . | . . . . . . . . . . . . . . . . . . . . Intercept . | . . . . . . . . . . . . . . . . . . . . Construction Impeded 1 | . . . 1 . . . . . . . . . . . . . . . . Haulers Reinforced . | . . . . . . . . . . . . . . . . . . . . Active Scanning Responses . | . . . . . . . . . . . . . . . . . . . . Cargo Convoy Interrupts . | . . . . . . . . . . . . . . . . . . . . Stealth | -11 -10 -10 -9 -9 -9 -8 -8 -7 -7 -7 -6 -5 -5 -5 -4 -3 -2 -1 -1 --------- Run | Scr Mat Min Mat Min Exi Min Mat Fac Low Low Fac Fac Was Fac Fac Res Res Acc Com Distress Signals 9 | . . . 1 . . . 2 . . . 1 . . . . 3 . 2 . Communications Jammed 26 | . . . . . . . . . . . . . . . . 7 4 15 . Distress Signals 26 | . . . . . . . . . . . . . . . . 7 4 15 . Times Spotted 248 | . 10 4 22 11 . 4 39 12 3 3 7 3 . 32 13 19 18 47 1 Peak Tracking Total 18 | . 3 2 3 4 . 3 5 3 2 3 4 2 . 7 5 7 6 18 1 Tactical Retreats 41 | . 1 . 3 . . 1 6 1 2 . 2 1 . 7 2 5 4 6 . Traps | -11 -10 -10 -9 -9 -9 -8 -8 -7 -7 -7 -6 -5 -5 -5 -4 -3 -2 -1 -1 ------- Run | Scr Mat Min Mat Min Exi Min Mat Fac Low Low Fac Fac Was Fac Fac Res Res Acc Com Traps Triggered 17 | . 1 . 1 . . . . 1 1 . . 1 . 5 . 2 2 3 . Indirectly . | . . . . . . . . . . . . . . . . . . . . Trap Hack Attempts . | . . . . . . . . . . . . . . . . . . . . Triggered . | . . . . . . . . . . . . . . . . . . . . Disarmed . | . . . . . . . . . . . . . . . . . . . . Reprogrammed . | . . . . . . . . . . . . . . . . . . . . Reused . | . . . . . . . . . . . . . . . . . . . . Traps Extracted . | . . . . . . . . . . . . . . . . . . . . Installed . | . . . . . . . . . . . . . . . . . . . . Triggered . | . . . . . . . . . . . . . . . . . . . . Exploded 1 | . . . . . . . . . . . . 1 . . . . . . . Machines | -11 -10 -10 -9 -9 -9 -8 -8 -7 -7 -7 -6 -5 -5 -5 -4 -3 -2 -1 -1 ---------- Run | Scr Mat Min Mat Min Exi Min Mat Fac Low Low Fac Fac Was Fac Fac Res Res Acc Com Machines Disabled 18 | . . 1 5 3 . . 3 4 . . . . . 2 . . . . . Max in Single Turn 3 | . . 1 2 3 . . 1 3 . . . . . 2 . . . . . Garrison Access 4 | . . . . . . . . . . . 1 . . 1 . . 1 1 . Machines Sabotaged . | . . . . . . . . . . . . . . . . . . . . Garrisons Compromised 1 | . . . . . . . . . . . 1 . . . . . . . . Overloaded Fab Kills . | . . . . . . . . . . . . . . . . . . . . Hacking | -11 -10 -10 -9 -9 -9 -8 -8 -7 -7 -7 -6 -5 -5 -5 -4 -3 -2 -1 -1 --------- Run | Scr Mat Min Mat Min Exi Min Mat Fac Low Low Fac Fac Was Fac Fac Res Res Acc Com Machines Accessed 64 | . 3 2 3 1 2 . 3 8 . . 10 2 . 7 8 5 6 4 . Terminals 38 | . 3 1 3 1 . . 3 4 . . 4 1 . 3 5 4 4 2 . Fabricators 5 | . . . . . . . . 1 . . 2 1 . 1 . . . . . Repair Stations 5 | . . . . . . . . 1 . . . . . 1 1 . 1 1 . Recycling Units 5 | . . . . . . . . 1 . . 2 . . . 2 . . . . Scanalyzers 2 | . . . . . . . . . . . 1 . . 1 . . . . . Garrison Access 6 | . . . . . . . . 1 . . 1 . . 1 . 1 1 1 . Total Hacks 152 | . 12 4 12 6 2 . 9 15 . . 19 2 . 18 23 12 9 9 . Successful 88 | . 8 2 6 3 2 . 5 7 . . 10 1 . 14 18 5 4 3 . Failed 64 | . 4 2 6 3 . . 4 8 . . 9 1 . 4 5 7 5 6 . Catastrophic 12 | . . 1 . . . . 1 2 . . 3 1 . . . . 3 1 . Database Lockouts . | . . . . . . . . . . . . . . . . . . . . Manual 76 | . 6 2 9 5 1 . 8 7 . . 7 1 . 5 13 3 4 5 . Terminals 107 | . 12 3 12 6 . . 9 9 . . 10 1 . 8 17 9 5 6 . Fabricators 6 | . . . . . . . . 1 . . 2 1 . 2 . . . . . Repair Stations 11 | . . . . . . . . 2 . . . . . 2 2 . 3 2 . Recycling Units 8 | . . . . . . . . 1 . . 3 . . . 4 . . . . Scanalyzers 7 | . . . . . . . . . . . 2 . . 5 . . . . . Garrison Access 10 | . . . . . . . . 2 . . 2 . . 1 . 3 1 1 . Terminal Hacks 38 | . 5 2 4 1 2 . 2 1 . . 2 . . 4 9 5 . 1 . Record 1 | . . . . . 1 . . . . . . . . . . . . . . Robot Analysis 3 | . 2 . 1 . . . . . . . . . . . . . . . . Prototype ID Bank 2 | . . . . . . . . 1 . . . . . . . 1 . . . Open Door 1 | . . 1 . . . . . . . . . . . . . . . . . Level Access Points 1 | . . . . . . . . . . . . . . . 1 . . . . Branch Access Points 2 | . 1 . . . . . . . . . . . . . 1 . . . . Emergency Access Points 3 | . . . . . . . . . . . . . . 1 1 1 . . . Terminal Index 1 | . . . . . . . . . . . . . . . . . . 1 . Alert Level 5 | . . . 1 . . . 1 . . . . . . 2 1 . . . . Unreport Threat 2 | . . . . . . . 1 . . . . . . . . 1 . . . Locate Traps 4 | . 1 . 1 . . . . . . . . . . . 2 . . . . Dispatch Records 1 | . . . . 1 . . . . . . . . . . . . . . . Surveillance Status 1 | . . . . . . . . . . . 1 . . . . . . . . Recall Extermination 2 | . . . . . . . . . . . . . . . 1 1 . . . Zone Layout 8 | . 1 1 1 . . . . . . . 1 . . 1 2 1 . . . EX-Prototype ID Bank 1 | . . . . . 1 . . . . . . . . . . . . . . Fabricator Hacks 3 | . . . . . . . . 1 . . 1 1 . . . . . . . Network Status 3 | . . . . . . . . 1 . . 1 1 . . . . . . . Repair Station Hacks 8 | . . . . . . . . 2 . . . . . 2 2 . 2 . . Scan Component 4 | . . . . . . . . 1 . . . . . 1 1 . 1 . . Repair 4 | . . . . . . . . 1 . . . . . 1 1 . 1 . . Recycling Unit Hacks 6 | . . . . . . . . 1 . . 2 . . . 3 . . . . Process 1 | . . . . . . . . . . . . . . . 1 . . . . Report Inventory 4 | . . . . . . . . 1 . . 1 . . . 2 . . . . Retrieve Components 1 | . . . . . . . . . . . 1 . . . . . . . . Scanalyzer 7 | . . . . . . . . . . . 2 . . 5 . . . . . Insert Component 4 | . . . . . . . . . . . 1 . . 3 . . . . . Analyze 3 | . . . . . . . . . . . 1 . . 2 . . . . . Garrison Access Hacks 4 | . . . . . . . . . . . 1 . . 1 . . 1 1 . Seal Access 4 | . . . . . . . . . . . 1 . . 1 . . 1 1 . Unauthorized Hacks 22 | . 3 . 2 2 . . 3 2 . . 2 . . 2 4 . 1 1 . Terminals 21 | . 3 . 2 2 . . 3 2 . . 2 . . 1 4 . 1 1 . Track 1 | . . . . 1 . . . . . . . . . . . . . . . Botnet 19 | . 3 . 2 1 . . 3 2 . . 2 . . 1 3 . 1 1 . Operators 1 | . . . . . . . . . . . . . . . 1 . . . . Fabricators 1 | . . . . . . . . . . . . . . 1 . . . . . Fabnet 1 | . . . . . . . . . . . . . . 1 . . . . . Repair Stations . | . . . . . . . . . . . . . . . . . . . . Recycling Units . | . . . . . . . . . . . . . . . . . . . . Scanalyzers . | . . . . . . . . . . . . . . . . . . . . Garrison Access . | . . . . . . . . . . . . . . . . . . . . Data Cores Recovered . | . . . . . . . . . . . . . . . . . . . . Used . | . . . . . . . . . . . . . . . . . . . . Hacking Detections 51 | . 3 1 3 1 . . 3 7 . . 8 2 . 5 6 5 4 3 . Full Trace Events 3 | . . . . . . . . 2 . . . . . . . 1 . . . Feedback Events 1 | . . . . . . . . 1 . . . . . . . . . . . Corruption 1 | . . . . . . . . 1 . . . . . . . . . . . Feedback Blocked . | . . . . . . . . . . . . . . . . . . . . Robot Schematics Acquired . | . . . . . . . . . . . . . . . . . . . . Robots Built . | . . . . . . . . . . . . . . . . . . . . Authchips . | . . . . . . . . . . . . . . . . . . . . Time . | . . . . . . . . . . . . . . . . . . . . Total Robot Build Rating . | . . . . . . . . . . . . . . . . . . . . Part Schematics Acquired 3 | . . . . . . . . . . . 1 . . 2 . . . . . Parts Built . | . . . . . . . . . . . . . . . . . . . . Authchips . | . . . . . . . . . . . . . . . . . . . . Time . | . . . . . . . . . . . . . . . . . . . . Total Part Build Rating . | . . . . . . . . . . . . . . . . . . . . Parts Repaired 4 | . . . . . . . . 1 . . . . . 1 1 . 1 . . Time 128 | . . . . . . . . 44 . . . . . 31 25 . 28 . . Parts Recycled . | . . . . . . . . . . . . . . . . . . . . Recycled Matter . | . . . . . . . . . . . . . . . . . . . . Retrieved Matter . | . . . . . . . . . . . . . . . . . . . . Retrieved Components 3 | . . . . . . . . . . . 3 . . . . . . . . Parts Scanalyzed 3 | . . . . . . . . . . . 1 . . 2 . . . . . Part Schematics Acquired 3 | . . . . . . . . . . . 1 . . 2 . . . . . Parts Damaged . | . . . . . . . . . . . . . . . . . . . . Bothacking | -11 -10 -10 -9 -9 -9 -8 -8 -7 -7 -7 -6 -5 -5 -5 -4 -3 -2 -1 -1 ------------ Run | Scr Mat Min Mat Min Exi Min Mat Fac Low Low Fac Fac Was Fac Fac Res Res Acc Com Used RIF Installer . | . . . . . . . . . . . . . . . . . . . . Robots Hacked 2 | . . . . . . . . . . . . . . . 1 1 . . . Non-combat 2 | . . . . . . . . . . . . . . . 1 1 . . . Combat . | . . . . . . . . . . . . . . . . . . . . Robot Hacks Applied . | . . . . . . . . . . . . . . . . . . . . Relay Couplers Released 2 | . . . . . . . . . . . . . . 2 . . . . . Machine Destruction 2 | . . . . . . . . . . . . . . 2 . . . . . Fabnet Peak Effective % 3 | . . . . . . . . . . . . . . . 3 1 . . . Autooverrided 2 | . . . . . . . . . . . . . . . 1 1 . . . Robots Rewired . | . . . . . . . . . . . . . . . . . . . . Allies Hacked . | . . . . . . . . . . . . . . . . . . . . Hacks Repelled . | . . . . . . . . . . . . . . . . . . . . Allies | -11 -10 -10 -9 -9 -9 -8 -8 -7 -7 -7 -6 -5 -5 -5 -4 -3 -2 -1 -1 -------- Run | Scr Mat Min Mat Min Exi Min Mat Fac Low Low Fac Fac Was Fac Fac Res Res Acc Com Total Allies 25 | . . . . 3 . . . . . . . . 20 . 1 1 . . . Largest Group 20 | . . . . 3 3 3 . . . . . . 20 6 1 1 . . . Highest-Rated Group 781 | . . . . 40 40 40 . . . . . . 781 150 41 41 . . . Highest-Rated Ally 50 | . . . . 16 16 16 . . . . . . 50 25 41 41 . . . Total Orders . | . . . . . . . . . . . . . . . . . . . . Ally Attacks 57 | . . . . . . 16 . . . . . . . 41 . . . . . Total Damage 774 | . . . . . . 160 . . . . . . . 614 . . . . . Kills 9 | . . . . . . 5 . . . . . . . 4 . . . . . Allies Corrupted . | . . . . . . . . . . . . . . . . . . . . Allies Melted . | . . . . . . . . . . . . . . . . . . . . Intel | -11 -10 -10 -9 -9 -9 -8 -8 -7 -7 -7 -6 -5 -5 -5 -4 -3 -2 -1 -1 ------- Run | Scr Mat Min Mat Min Exi Min Mat Fac Low Low Fac Fac Was Fac Fac Res Res Acc Com Robot Analysis Total 3 | . 2 . 1 . . . . . . . . . . . . . . . . Derelict Logs Recovered 4 | . . 2 . 1 . . . . . 1 . . . . . . . . . Drone Launches . | . . . . . . . . . . . . . . . . . . . . Drone Recoveries . | . . . . . . . . . . . . . . . . . . . . Exploration | -11 -10 -10 -9 -9 -9 -8 -8 -7 -7 -7 -6 -5 -5 -5 -4 -3 -2 -1 -1 ------------- Run | Scr Mat Min Mat Min Exi Min Mat Fac Low Low Fac Fac Was Fac Fac Res Res Acc Com Turns Passed 11358 | . 629 1351 762 1267 411 668 1118 840 137 47 482 155 154 872 608 495 575 586 201 Spaces Moved 12435 | 1 444 665 437 703 216 474 717 845 283 76 974 307 302 1280 668 1273 1379 1200 191 Core 12 | . . . . . . . . . . . . . . . . . . 12 . Treads . | . . . . . . . . . . . . . . . . . . . . Legs 3176 | 1 444 665 437 703 216 474 236 . . . . . . . . . . . . Wheels 1205 | . . . . . . . 481 533 . . . . . . . . . . 191 Hover 3119 | . . . . . . . . 312 283 76 974 307 302 865 . . . . . Flight 4923 | . . . . . . . . . . . . . . 415 668 1273 1379 1188 . Fastest Speed 16 | 120 120 190 120 120 190 120 100 44 44 48 40 42 42 16 29 25 25 22 90 Average Speed 70 | 120 124 190 127 170 190 136 112 80 47 48 42 42 42 38 29 26 25 25 90 Slowest Speed 430 | 120 190 190 190 190 190 190 400 108 48 48 44 42 42 430 101 28 25 100 90 Overloaded Moves . | . . . . . . . . . . . . . . . . . . . . Propulsion Burnouts . | . . . . . . . . . . . . . . . . . . . . Robots Hopped 30 | . . . . . . . . . . . . . . 5 2 10 7 6 . Cave-ins Triggered . | . . . . . . . . . . . . . . . . . . . . Exploration Rate (%) 47 | 2 84 99 43 98 59 96 56 29 55 12 34 14 96 34 20 43 45 36 4 Regions Visited 19 Branch Regions 7 Pre-discovered Areas 3 | . . . . 2 1 . . . . . . . . . . . . . . Known Exits Taken 12 | . 1 . 1 . . 1 1 1 1 1 1 . . 1 1 1 1 . . Unknown Exits Taken 5 | 1 . 1 . 1 1 . . . . . . . . . . . . 1 . Scrap Searched 4 | . . 3 . 1 . . . . . . . . . . . . . . . Spaces Dug 72 | . . . . . . . . . . . . 1 . 11 9 15 18 18 . Terrain Destroyed 286 | . . . 82 25 . . 35 23 . 28 . 1 . 32 9 15 18 18 . Melee 72 | . . . . . . . . . . . . 1 . 11 9 15 18 18 . Projectile 42 | . . . . . . . 35 5 . . . . . 2 . . . . . AOE 172 | . . . 82 25 . . . 18 . 28 . . . 19 . . . . . Terrain Rammed . | . . . . . . . . . . . . . . . . . . . . Walls Destroyed . | . . . . . . . . . . . . . . . . . . . . Machines Disabled . | . . . . . . . . . . . . . . . . . . . . Actions | -11 -10 -10 -9 -9 -9 -8 -8 -7 -7 -7 -6 -5 -5 -5 -4 -3 -2 -1 -1 --------- Run | Scr Mat Min Mat Min Exi Min Mat Fac Low Low Fac Fac Was Fac Fac Res Res Acc Com Total 14467 | . 495 714 588 736 218 487 959 1002 285 80 1041 329 317 1601 1059 1384 1557 1396 219 Wait 1351 | . 15 25 79 . . 9 155 114 3 . 32 11 . 200 353 74 144 112 25 Move 12359 | . 443 664 436 702 215 473 716 844 282 75 973 307 301 1269 663 1252 1365 1188 191 Hop 28 | . . . . . . . . . . . . . . 5 2 10 6 5 . Pick Up 83 | . 6 4 8 4 1 . 10 9 . . 7 1 1 9 8 6 4 5 . Fast Attach 70 | . 3 . 7 1 . . 6 7 . . 4 1 2 23 6 2 1 6 1 Attach 56 | . . . 5 1 . . 7 4 . . 4 2 . 11 3 4 4 9 2 Detach 31 | . 1 . 1 1 . . 3 2 . . 5 . . 7 1 1 2 7 . Swap 68 | . 3 2 9 3 . 1 7 6 . . 6 3 1 8 5 6 1 7 . Drop 109 | . 9 . 7 4 2 1 14 12 . . 7 2 4 19 7 9 2 10 . Fire 139 | . 14 19 36 20 . 3 38 3 . 5 . . . 1 . . . . . Melee 144 | . . . . . . . . 1 . . 3 2 8 35 11 20 28 36 . Ram 8 | . . . . . . . . . . . . . . . . . . 8 . Kick 4 | . 1 . . . . . 3 . . . . . . . . . . . . Crush . | . . . . . . . . . . . . . . . . . . . . Escape Stasis 17 | . . . . . . . . . . . . . . 14 . . . 3 . Rewire . | . . . . . . . . . . . . . . . . . . . . Trap . | . . . . . . . . . . . . . . . . . . . . Miscellaneous . | . . . . . . . . . . . . . . . . . . . . Route ------- -11/Scrapyard -10/Materials (discovered 5 exits: *Mat x3 / *Min x2) -10/Mines (discovered 2 exits: *Mat x2) -9/Materials (discovered 2 exits: *Mat / *Min) -9/Mines (discovered 4 exits: *Mat x2 / *Exi / [*Zio]) -9/Exiles -8/Mines (discovered 2 exits: *Mat x2) -8/Materials (discovered 2 exits: *Fac / *Sto) -7/Factory (discovered 3 exits: *Fac / *Low x2) -7/Lower Caves -7/Lower Caves -6/Factory (discovered 4 exits: *Fac x2 / *Low x2) -5/Factory -5/Waste -5/Factory (discovered 3 exits: *Fac x2 / *Upp) -4/Factory (discovered 6 exits: *Res x4 / Upp x2) -3/Research -2/Research -1/Access -1/Command History --------- Turn | Location | Event 1 | -11/Scrapyard | Discovered new exit (range 0) 1 | -11/Scrapyard | Entered Materials 122 | -10/Materials | Discovered new exit (range 16) 293 | -10/Materials | Discovered new exit (range 15) 309 | -10/Materials | Build established: Mutant 418 | -10/Materials | Discovered new exit (range 9) 466 | -10/Materials | Discovered new exit (range 5) 481 | -10/Materials | Identified exit to Mines 630 | -10/Materials | Entered Mines 649 | -10/Mines | Received a Rocket Launcher from a helpful Derelict 1057 | -10/Mines | Learned Materials terminal intel 1100 | -10/Mines | Found the Drone Emporium 1599 | -10/Mines | Learned location of 1 exit from Materials 1635 | -10/Mines | Discovered new exit (range 6) 1688 | -10/Mines | Discovered new exit (range 7) 1981 | -10/Mines | Entered Materials 1981 | -9/Materials | Evolved 2 slots: Propulsion x1, Utility x1 1982 | -9/Materials | Identified exit to Mines 1983 | -9/Materials | Loaded intel: 12 terminal locations 2277 | -9/Materials | Lost 3 parts (1p1n1u) 2591 | -9/Materials | Discovered new exit (range 5) 2595 | -9/Materials | Identified exit to Materials 2743 | -9/Materials | Entered Mines 2906 | -9/Mines | Deemed a non-threat by the Exiles lab entrance 2906 | -9/Mines | Discovered new exit (range 5) 3280 | -9/Mines | Discovered exit to Materials (range 4) 3322 | -9/Mines | Build established: Scavenger-Mutant 3449 | -9/Mines | A Derelict revealed a hidden shortcut to a safe place 3523 | -9/Mines | Learned location of Storage (-8) 3578 | -9/Mines | Discovered exit to Materials (range 3) 3746 | -9/Mines | Assisted by bots powering up and referring to "LRC-V3" 4010 | -9/Mines | Entered Exiles 4010 | -9/Exiles | Accompanied by 3 allies 4056 | -9/Exiles | Met 8R-AWN 4088 | -9/Exiles | Met EX-HEX 4145 | -9/Exiles | Met EX-BIN 4176 | -9/Exiles | Aligned with FarCom system 4178 | -9/Exiles | Given EX-Vault access code 4221 | -9/Exiles | Opened EX-Vault 4236 | -9/Exiles | Found AWS/Gauss 4277 | -9/Exiles | Warned to stay clear of 0b10 Research branches 4332 | -9/Exiles | Met EX-DEC 4339 | -9/Exiles | Learned location of Zion (-7) 4394 | -9/Exiles | Discovered new exit (range 14) 4421 | -9/Exiles | Left Exiles lab with AWS/Gauss 4421 | -9/Exiles | Entered Mines 4421 | -8/Mines | Accompanied by 3 allies 4454 | -8/Mines | Discovered exit to Materials (range 8) 4682 | -8/Mines | Discovered exit to Materials (range 7) 5089 | -8/Mines | Entered Materials 5089 | -8/Materials | Evolved 2 slots: Propulsion x1, Utility x1 5522 | -8/Materials | Lost 5 parts (1p3n1w) 5841 | -8/Materials | Discovered new exit (range 13) 5905 | -8/Materials | Build established: Mutant 5934 | -8/Materials | Discovered new exit (range 15) 6007 | -8/Materials | Destroyed 7 combat bots 6038 | -8/Materials | Identified exit to Storage 6206 | -8/Materials | Identified exit to Factory 6207 | -8/Materials | Entered Factory 6207 | -7/Factory | Evolved 2 slots: Propulsion x1, Utility x1 6386 | -7/Factory | Discovered new exit (range 19) 6471 | -7/Factory | Repaired Arm. Huge Wheel 6683 | -7/Factory | Discovered new exit (range 11) 6975 | -7/Factory | Discovered new exit (range 16) 7036 | -7/Factory | Identified exit to Lower Caves 7041 | -7/Factory | Identified exit to Factory 7047 | -7/Factory | Entered Lower Caves 7163 | -7/Lower Caves | Discovered new exit (range 14) 7170 | -7/Lower Caves | Identified exit to Lower Caves 7184 | -7/Lower Caves | Entered another Lower Caves area 7195 | -7/Lower Caves | Discovered exit to Factory (range 18) 7208 | -7/Lower Caves | Learned location of 1 exit from Factory 7231 | -7/Lower Caves | Entered Factory 7231 | -6/Factory | Evolved 2 slots: Propulsion x1, Utility x1 7232 | -6/Factory | Identified exit to Factory 7441 | -6/Factory | Discovered new exit (range 8) 7456 | -6/Factory | Identified exit to Lower Caves 7524 | -6/Factory | Discovered exit to Lower Caves (range 5) 7695 | -6/Factory | Discovered exit to Factory (range 20) 7713 | -6/Factory | Entered another Factory area 7713 | -5/Factory | Evolved 2 slots: Utility x2 7734 | -5/Factory | Noticed a derelict Sapper rigging charges 7765 | -5/Factory | Discovered new exit (range 14) 7868 | -5/Factory | Sucked down chute 7868 | -5/Factory | Entered Waste 7869 | -5/Waste | Joined by Warlord forces that had cleared the area 7907 | -5/Waste | Discovered new exit (range 22) 8005 | -5/Waste | Build established: Hacker-Mutant 8022 | -5/Waste | Identified exit to Factory 8022 | -5/Waste | Entered Factory 8022 | -5/Factory | Accompanied by 6 allies 8179 | -5/Factory | Repaired Antimatter Reactor 8666 | -5/Factory | Lost 9 parts (1p5n3u) 8687 | -5/Factory | Discovered new exit (range 13) 8689 | -5/Factory | Identified exit to Upper Caves 8825 | -5/Factory | Discovered new exit (range 4) 8826 | -5/Factory | Identified exit to Factory 8871 | -5/Factory | Discovered exit to Factory (range 9) 8894 | -5/Factory | Entered another Factory area 8894 | -4/Factory | Evolved 2 slots: Power x1, Weapon x1 9088 | -4/Factory | Build established: Hacker-Sprinter 9374 | -4/Factory | Identified exit to Upper Caves 9374 | -4/Factory | Identified exit to Research 9445 | -4/Factory | Repaired Imp. Surge Thruster 9502 | -4/Factory | Entered Research 9502 | -3/Research | Evolved 2 slots: Propulsion x1, Utility x1 9825 | -3/Research | Spotted B-86 Titan 9844 | -3/Research | Spotted B-86 Titan 9991 | -3/Research | Discovered new exit (range 22) 9996 | -3/Research | Identified exit to Research 9997 | -3/Research | Entered another Research area 9997 | -2/Research | Evolved 2 slots: Utility x2 10062 | -2/Research | Repaired Field Propulsion Drive 10230 | -2/Research | Build established: Hacker-Ninja 10426 | -2/Research | System corruption reached 10% 10569 | -2/Research | Discovered new exit (range 4) 10570 | -2/Research | Identified exit to Access 10572 | -2/Research | Entered Access 10572 | -1/Access | Evolved 2 slots: Propulsion x1, Utility x1 10904 | -1/Access | Spotted B-99 Colossus 10939 | -1/Access | Spotted B-99 Colossus 11134 | -1/Access | Spotted B-99 Colossus 11143 | -1/Access | System corruption reached 10% 11146 | -1/Access | Core integrity fell below 50% 11154 | -1/Access | Core integrity fell below 20% 11154 | -1/Access | Spotted B-99 Colossus 11156 | -1/Access | Discovered new exit (range 7) 11158 | -1/Access | Entered Command 11173 | -1/Command | Lost 21 parts (3p6n9u3w) 11359 | -1/Command | Destroyed by H-81 Overseer with Heavy Linear Accelerator Last Messages --------------- 11152_ Slug penetrates Reinforced Barrier. 11152_ S-43 Plague destroyed. 11153_ Slammed into H-88 Terminator. 11154_ B-99 Colossus activates siege mode. 11154_ The unstable cave ceiling collapses. 11154_ 11 Matter crushed. 11154_ Penetrated by Slug. 11154_ Slug penetrates H-88 Terminator. 11156_ EXIT=FOUND LOCATION=UNKNOWN GOAL=ESCAPE 11158_ ALERT: Rogue bot within command proximity. Terminate immediately. 11158_ Receiving FarCom transmissions... 11190_ System corrupted: Energy discharge (-25). 11213_ System corrupted: Component data lost. 11257_ System corrupted: Matter fused (-6). 11272_ System corrupted: Matter fused (-7). 11297_ System corrupted: Energy discharge (-27). 11330_ System corrupted: Matter fused (-10). 11350_ Acquired Centrium Wheel. Map ----- +----------------------------------------------------+ | ??????????????????????????????????????????????# | | ??????????????????????????????????????????????# | | ??????????????????????????????????????????????## # | | ???????????????????????????????????????????????# | | ???????????????????????????????????????????????# | | ???????????????????????????????????????????????# | | ???????????????????????????????????????????????# | | ?????????????????????????????# ################# | | ????????????????????Y | | ??????????????????????????????### ############## # | | ???????????????????????????????????????????????# # | | ????????????????????h############+#????????????# # | | ????????????????????h# #???##########+# | | ?????????????????????# #???# # | | ?????????????????????# #???# # | | ?????????????????????# #???# # """" | | ?????????????????????# #???# # """" | | ?????????????????????# #???# # """" | | ?????????????????????# "" #???# + """" | | ?????????????????????# """" #???# # | | ?????????????????????# """" #???# # | | ?????????????????????# "" #???# # | | | ?????????????????????# #???# ######### | | ?????????????????????# #???# #???????? | | ?????????????####### #######+########## #???????? | | ??? H @ R #???????? | | ??? % #???????? | | ???????###;#################+########## #???????? | | ??????????????????????????????????????# #???????? | | ??????????????????????????????????????# #???????? | | ??????????????????????????????????????# #???????? | | ??????????????????????????????????????# #???????? | | ?????????????????????????????????????## ##??????? | | ?????????????????????????????????????# #??????? | | ?????????????????????????????????????# #??????? | | ????????????????????????g????????????# #??????? | | ???????????????????????gg????????????# #??????? | | ???????????????????????gg??????????####+#########? | | ???????????????????????????????????# #? | | ???????????????????????????????????# #? | | ???????????????????????????????????# #? | | ???????????????????????????????????# "" #? | | ???????????????????????????????????# """" #? | | ???????????????????????????????????# """" #? | | ???????????????????????????????????# "" #? | | ???????????????????????????????????# #? | | ???????????????????????????????????# #? | | ???????????????????????????????????# #? | | ???????????????????????????????????# #? | | ???????????????????????????????????# #? | +----------------------------------------------------+ Best States ------------- Heat Dissipation 90 Coolant Potential 80 Energy Generation 38 Energy Capacity 410 Matter Stores 300 Matter Capacity 300 Sight Range 22 Robot Scan Range 14 Terrain Scan Range 20 Terrain Scan Density 10 Jamming Range 16 Armor Coverage 375 Resistance: EM 25 Propulsion Shielding 66 Utility Shielding 33 Melee Speed Boost 20 Evasion (%) 66 Targeting Accuracy 8 Melee Accuracy 6 Target Analysis 8 Offensive Hacking 40 Defensive Hacking 24 Item Schematics ----------------- Imp. Deuterium Engine | -6/Factory | Scanalyzed Gravmag Array | -5/Factory | Scanalyzed Hacking Suite | -5/Factory | Scanalyzed Robot Schematics ------------------ None Fabricated ------------ Nothing Alien Tech Used ----------------- None Achievements -------------- None Challenges ------------ None Game ------ Seed BarrageReactiveReactor Manual? 0 Play Time 02:33:33 Cumulative 83.3 hours Start 2021.11.28 @ 17:25:09 End 2021.11.28 @ 20:23:46 Sessions 1 Manual Loads 0 Difficulty Rogue Special Mode None Game No. 91 Rogue 70 Adventurer 17 Explorer 4 Win Type - Total 1 Types 0/0/1/0/0/0/0/0/0 Lore% 47 Gallery% 48 Achievement% 44 Wizard Run 0 Options --------- ASCII 1 Keyboard 1 Movement Vi Keybinds 0 Fullscreen 1 Font 14/Dina Map View 84x54 Tactical HUD 1 Map Filters SATURATION(80) Filters SATURATION(80) Steam 1 RUN: ab713628-13fc-40a0-b899-dd36756bdb27